bitfinex/quotes_SOLUSD_20240809
["timestamp","ask_amount","ask_price","bid_price","bid_amount"]
[1723246162152,45.0,155.55,155.48,1.28596149]
[1723246162464,51.4284,155.56,155.48,40.14]
[1723246162666,6.4292,155.54,155.47,21.8563]
[1723246162840,45.0,155.53,155.47,21.8563]
[1723246163276,6.55569,155.52,155.47,21.8563]
[1723246163443,45.0,155.51,155.47,21.8563]
[1723246163643,45.0,155.53,155.47,21.8563]
[1723246163843,51.4292,155.54,155.47,21.8563]
[1723246164147,6.4297,155.53,155.47,21.8563]
[1723246164343,45.0,155.52,155.47,21.8563]
[1723246164850,51.43,155.52,155.47,21.8563]
[1723246165044,51.43,155.52,155.4,19.33221277]
[1723246165045,0.12549,155.51,155.43,21.8563]
[1723246165349,6.4306,155.51,155.43,21.8563]
[1723246165546,45.0,155.5,155.43,21.8563]
[1723246165747,45.0,155.52,155.44,1.28630195]
[1723246166363,6.43,155.52,155.44,1.28630195]
[1723246166562,51.4305,155.51,155.44,1.28630195]
[1723246166758,45.12549,155.53,155.44,40.14]
[1723246167260,51.55519,155.53,155.45,1.2861622]
[1723246167447,45.0,155.53,155.46,1.28613088]
[1723246167652,16.0671,155.6,155.46,41.42613088]
[1723246167849,40.9820987,155.61,155.5,6.2365]
[1723246168056,40.9820987,155.61,155.5,7.52215282]
[1723246168463,6.4274,155.59,155.5,7.52215282]
[1723246168643,40.9820987,155.61,155.51,1.28569898]
[1723246168839,40.9820987,155.61,155.5,6.2365]
[1723246168840,57.0487987,155.61,155.5,6.2365]
[1723246169046,6.4287,155.56,155.5,6.2365]
[1723246169242,46.5673,155.59,155.5,7.52231937]
[1723246169447,6.4273,155.59,155.51,15.6198]
[1723246169669,6.4273,155.59,155.52,1.28567219]
[1723246170370,40.9820987,155.61,155.52,1.28567219]
[1723246170371,0.8420987,155.61,155.53,0.12549]
[1723246170548,7.2683987,155.61,155.52,41.42567219]
[1723246170875,6.4268,155.6,155.52,40.14]
[1723246171168,40.9820987,155.61,155.51,15.6198]
[1723246171345,6.4284,155.56,155.51,15.6198]
[1723246171749,6.4274,155.59,155.51,15.6198]
[1723246171968,6.4268,155.6,155.51,15.6198]
[1723246172153,0.8420987,155.61,155.51,55.7598]
[1723246173276,6.4267,155.6,155.51,15.6198]
[1723246173451,6.4267,155.6,155.51,57.04530851]
[1723246173652,5.9267,155.6,155.51,57.04530851]
[1723246174470,6.4281,155.57,155.51,15.6198]
[1723246174855,40.14,155.59,155.51,15.6198]
[1723246175055,40.14,155.57,155.51,15.6198]
[1723246175274,45.0,155.56,155.51,15.6198]
[1723246175456,40.14,155.55,155.5,6.2365]
[1723246175659,6.4301,155.52,155.5,6.2365]
[1723246176557,6.4297,155.53,155.47,15.6198]
[1723246176882,45.0,155.52,155.47,15.6198]
[1723246177249,40.14,155.51,155.46,6.4844]
[1723246177449,45.0,155.52,155.46,6.4844]
[1723246178380,6.4313,155.49,155.46,6.4844]
[1723246178572,6.4309,155.5,155.46,6.4844]
[1723246178757,45.0,155.49,155.46,6.4844]
[1723246179551,45.0,155.5,155.46,6.4844]
[1723246179870,51.4309,155.5,155.46,6.4844]
[1723246180175,45.0,155.5,155.46,6.4844]
[1723246180504,46.5705,155.51,155.46,6.4844]
[1723246180845,0.12549,155.53,155.46,6.4844]
[1723246180846,6.4301,155.52,155.46,6.4844]
[1723246182248,45.0,155.51,155.46,6.4844]
[1723246182955,40.14,155.48,155.39,6.4844]
[1723246183170,46.5717,155.48,155.39,6.4844]
[1723246184181,46.5717,155.48,155.39,7.77093755]
[1723246184579,40.14,155.48,155.39,7.77093755]
[1723246184879,6.4304,155.52,155.42,40.14]
[1723246185185,46.5694,155.54,155.43,1.28617597]
[1723246185364,6.4296,155.53,155.43,1.28617597]
[1723246185555,6.4301,155.52,155.43,1.28617597]
[1723246185755,40.14,155.52,155.4,40.14]
[1723246186078,40.14,155.5,155.39,6.4844]
[1723246186267,40.14,155.52,155.4,41.42636545]
[1723246186575,45.0,155.51,155.4,41.42636545]
[1723246186773,40.26549,155.5,155.39,7.66531807]
[1723246186973,45.0,155.49,155.39,6.4844]
[1723246187179,45.0,155.49,155.4,1.28654708]
[1723246187883,45.0,155.49,155.39,6.4844]
[1723246188783,6.432,155.48,155.39,6.4844]
[1723246188976,6.4327,155.46,155.39,6.4844]
[1723246189157,45.0,155.45,155.39,6.4844]
[1723246189498,45.0,155.45,155.4,1.28673668]
[1723246189659,45.0,155.46,155.4,1.28673668]
[1723246190177,45.0,155.46,155.39,6.4844]
[1723246190488,6.4336,155.44,155.39,6.4844]
[1723246190862,6.4338,155.43,155.39,6.4844]
[1723246191059,6.4347,155.41,155.39,6.4844]
[1723246191257,45.0,155.4,155.33,22.8952]
[1723246191982,51.435,155.4,155.33,22.8952]
[1723246192164,45.0,155.4,155.33,22.8952]
[1723246192368,0.12549,155.41,155.33,22.8952]
[1723246192554,40.14,155.38,155.3,6.72870823]
[1723246192757,45.0,155.37,155.29,22.8952]
[1723246194869,45.0,155.39,155.31,40.14]
[1723246195690,6.4362,155.37,155.29,22.8952]
[1723246195872,51.437,155.36,155.29,22.8952]
[1723246196271,6.4371,155.35,155.29,22.8952]
[1723246196460,45.0,155.34,155.29,22.8952]
[1723246197892,6.4375,155.34,155.29,22.8952]
[1723246198189,45.0,155.33,155.29,22.8952]
[1723246198590,45.0,155.34,155.29,22.8952]
[1723246198790,40.26549,155.38,155.3,1.28778594]
[1723246198979,45.0,155.37,155.29,22.8952]
[1723246199167,6.4367,155.36,155.29,22.8952]
[1723246199366,45.0,155.35,155.29,22.8952]
[1723246199566,6.4355,155.39,155.29,22.8952]
[1723246199800,45.0,155.38,155.3,1.28741042]
[1723246199961,6.4346,155.41,155.3,1.28741042]
[1723246200162,6.4346,155.41,155.31,40.14]
[1723246200581,6.435,155.4,155.31,40.14]
[1723246200801,40.14,155.4,155.29,22.8952]
[1723246201192,6.4359,155.38,155.29,22.8952]
[1723246201492,45.0,155.37,155.29,22.8952]
[1723246202084,45.0,155.37,155.29,63.0352]
[1723246202269,51.436,155.38,155.29,63.0352]
[1723246203368,45.0,155.38,155.29,63.0352]
[1723246204095,40.14,155.36,155.29,6.4844]
[1723246204385,6.4392,155.3,155.25,15.0401]
[1723246204588,40.14,155.32,155.24,6.1455]
[1723246204780,40.14,155.34,155.24,6.1455]
[1723246204984,45.0,155.33,155.26,40.14]
[1723246205167,45.0,155.33,155.28,40.14]
[1723246205365,45.0,155.33,155.29,1.28762326]
[1723246205566,40.14,155.38,155.3,1.28761776]
[1723246205567,6.4359,155.38,155.3,1.28761776]
[1723246205794,45.0,155.37,155.3,1.28761776]
[1723246205987,20.0,155.53,155.3,1.28761776]
[1723246205988,16.0803,155.47,155.32,40.14]
[1723246206194,6.4345,155.42,155.32,40.14]
[1723246206378,40.14,155.42,155.3,61.3256]
[1723246206585,16.0836,155.44,155.3,61.3256]
[1723246206586,6.4358,155.38,155.3,21.1856]
[1723246206784,6.4375,155.34,155.3,21.1856]
[1723246207001,40.14,155.36,155.3,21.1856]
[1723246207300,6.4375,155.34,155.3,21.1856]
[1723246207476,45.0,155.33,155.3,21.1856]
[1723246207883,45.0,155.34,155.3,21.1856]
[1723246208184,51.437,155.35,155.3,21.1856]
[1723246208383,45.0,155.35,155.3,21.1856]
[1723246210520,6.438,155.33,155.3,21.1856]
[1723246210673,45.0,155.35,155.3,21.1856]
[1723246211476,45.0,155.35,155.31,1.28749569]
[1723246211885,45.0,155.35,155.3,21.1856]
[1723246212282,0.12549,155.34,155.3,6.1455]
[1723246212485,0.37647,155.34,155.27,1.28780496]
[1723246212701,45.37647,155.34,155.26,21.1856]
[1723246213287,6.4383,155.32,155.26,21.1856]
[1723246213493,45.0,155.31,155.26,21.1856]
[1723246213702,51.4378,155.34,155.26,21.1856]
[1723246213894,45.0,155.32,155.26,21.1856]
[1723246214089,51.4378,155.34,155.26,21.1856]
[1723246214090,45.0,155.34,155.26,21.1856]
[1723246214683,0.12549,155.33,155.26,21.1856]
[1723246214881,6.56369,155.33,155.26,21.1856]
[1723246215103,45.0,155.32,155.26,21.1856]
[1723246215786,51.4384,155.32,155.26,21.1856]
[1723246216509,45.0,155.32,155.26,21.1856]
[1723246216691,51.4384,155.32,155.26,21.1856]
[1723246216890,45.0,155.32,155.26,21.1856]
[1723246217101,6.4394,155.3,155.26,21.1856]
[1723246217306,84.97549,155.29,155.22,22.5265]
[1723246217606,6.4413,155.25,155.22,22.5265]
[1723246217805,45.0,155.24,155.22,22.5265]
[1723246218108,39.85,155.27,155.22,22.5265]
[1723246218288,39.85,155.29,155.23,1.28816914]
[1723246218489,45.0,155.28,155.23,1.28816914]
[1723246218885,45.0,155.29,155.23,1.28816914]
[1723246219407,0.12549,155.28,155.22,22.5265]
[1723246219602,6.4412,155.25,155.22,22.5265]
[1723246219804,6.4412,155.25,155.16,46.58491938]
[1723246219805,51.4417,155.24,155.18,22.5265]
[1723246220495,6.4421,155.23,155.18,22.5265]
[1723246220821,51.4424,155.22,155.18,6.5609]
[1723246221111,45.0,155.22,155.18,6.5609]
[1723246221291,45.0,155.23,155.19,1.2885803]
[1723246221495,45.0,155.23,155.18,6.5609]
[1723246221496,39.85,155.27,155.18,6.5609]
[1723246221813,6.441,155.26,155.18,6.5609]
[1723246222010,6.4413,155.25,155.18,6.5609]
[1723246222207,6.4419,155.24,155.18,6.5609]
[1723246222500,39.85,155.27,155.18,6.5609]
[1723246222686,6.4403,155.28,155.19,1.28832893]
[1723246222886,39.85,155.29,155.18,46.4109]
[1723246223086,6.4383,155.32,155.2,39.85]
[1723246223306,6.4383,155.32,155.21,1.28800979]
[1723246223509,39.85,155.35,155.23,6.5609]
[1723246223711,39.85,155.35,155.25,15.9656]
[1723246223892,6.4378,155.34,155.26,1.28780082]
[1723246224087,39.85,155.35,155.27,1.28780072]
[1723246224291,6.4387,155.31,155.25,15.9656]
[1723246224611,39.85,155.31,155.25,15.9656]
[1723246224814,6.4409,155.26,155.23,6.5609]
[1723246225007,6.4404,155.27,155.23,6.5609]
[1723246225190,45.0,155.26,155.23,6.5609]
[1723246225799,39.85,155.31,155.23,6.5609]
[1723246226024,45.25098,155.3,155.24,1.28814748]
[1723246226319,45.0,155.3,155.24,41.13814748]
[1723246226492,39.85,155.37,155.26,39.85]
[1723246226694,39.85,155.35,155.25,15.9656]
[1723246227213,39.85,155.35,155.26,1.28785813]
[1723246227416,6.4379,155.33,155.27,1.28775137]
[1723246227719,6.4383,155.32,155.25,15.9656]
[1723246227896,6.4379,155.33,155.26,1.2878395]
[1723246228215,6.56299,155.34,155.27,1.28782407]
[1723246228394,45.0,155.33,155.27,1.28782407]
[1723246228794,51.438,155.33,155.27,1.28782407]
[1723246228990,84.85,155.33,155.25,15.9656]
[1723246229204,6.4401,155.28,155.25,15.9656]
[1723246229419,45.0,155.27,155.23,6.5609]
[1723246230413,51.4404,155.27,155.23,6.5609]
[1723246230613,45.0,155.27,155.23,6.5609]
[1723246230812,45.0,155.27,155.21,15.9656]
[1723246230813,6.442,155.23,155.21,15.9656]
[1723246231130,51.4424,155.22,155.18,6.5609]
[1723246231422,6.4429,155.21,155.18,6.5609]
[1723246231627,45.0,155.2,155.17,15.9656]
[1723246231814,51.4433,155.2,155.17,15.9656]
[1723246232020,51.4433,155.2,155.14,6.5609]
[1723246232021,6.4437,155.19,155.14,6.5609]
[1723246232204,51.4442,155.18,155.14,6.5609]
[1723246232406,6.445,155.16,155.09,22.5265]
[1723246232601,45.12549,155.18,155.09,23.81574761]
[1723246232807,45.0,155.18,155.09,23.81574761]
[1723246233302,45.0,155.18,155.1,1.28911377]
[1723246233509,51.4437,155.19,155.09,23.81546914]
[1723246233931,45.0,155.19,155.1,41.51544906]
[1723246234132,39.85,155.25,155.14,39.85]
[1723246234424,39.85,155.27,155.16,6.5609]
[1723246234638,39.85,155.27,155.17,1.28851982]
[1723246234819,6.4418,155.24,155.18,1.28856077]
[1723246235409,39.85,155.27,155.16,6.5609]
[1723246235410,45.0,155.23,155.16,6.5609]
[1723246235812,45.0,155.24,155.16,6.5609]
[1723246236127,39.85,155.21,155.11,6.5609]
[1723246236330,45.0,155.2,155.11,6.5609]
[1723246236718,6.445,155.16,155.11,6.5609]
[1723246236931,45.0,155.15,155.11,6.5609]
[1723246237118,60.10098,155.19,155.11,6.5609]
[1723246237320,6.4451,155.16,155.11,6.5609]
[1723246237528,45.0,155.15,155.11,6.5609]
[1723246237918,51.445,155.16,155.11,6.5609]
[1723246238234,6.4444,155.18,155.11,6.5609]
[1723246238416,45.0,155.17,155.11,6.5609]
[1723246238618,51.4445,155.17,155.11,6.5609]
[1723246240430,45.0,155.17,155.11,6.5609]
[1723246240621,0.12549,155.16,155.11,6.5609]
[1723246240822,45.25098,155.16,155.11,6.5609]
[1723246241238,6.4458,155.14,155.11,6.5609]
[1723246241445,39.85,155.21,155.11,6.5609]
[1723246241737,6.4421,155.23,155.12,0.12549]
[1723246241912,39.85,155.25,155.14,0.12549]
[1723246242111,39.85,155.25,155.14,1.53955647]
[1723246242529,6.442,155.23,155.14,1.53955647]
[1723246243138,6.4425,155.22,155.14,1.53955647]
[1723246243445,6.4425,155.22,155.15,15.4254]
[1723246243822,6.4421,155.23,155.15,15.4254]
[1723246244031,6.4424,155.22,155.15,15.4254]
[1723246244333,6.4424,155.22,155.16,1.28860738]
[1723246244533,6.4424,155.22,155.15,15.4254]
[1723246244853,6.4429,155.21,155.15,15.4254]
[1723246245017,39.85,155.21,155.15,15.4254]
[1723246245426,0.12549,155.22,155.0,302.03585898]
[1723246245427,6.4448,155.17,155.11,21.9863]
[1723246245637,51.445,155.16,155.11,21.9863]
[1723246246218,45.0,155.16,155.11,21.9863]
[1723246246543,45.0,155.17,155.11,21.9863]
[1723246246841,45.0,155.18,155.12,1.28915266]
[1723246247542,51.444,155.19,155.12,1.28891756]
[1723246248051,51.444,155.19,155.11,21.9863]
[1723246248241,84.85,155.19,155.11,21.9863]
[1723246248416,6.4454,155.15,155.11,21.9863]
[1723246248827,6.4449,155.17,155.11,21.9863]
[1723246249029,51.445,155.16,155.11,21.9863]
[1723246249234,6.4444,155.18,155.11,21.9863]
[1723246249540,45.0,155.17,155.12,1.28906256]
[1723246249750,45.0,155.17,155.11,21.9863]
[1723246250942,6.445,155.16,155.11,21.9863]
[1723246251347,6.4446,155.17,155.11,21.9863]
[1723246251520,45.0,155.16,155.11,21.9863]
[1723246252445,51.4451,155.16,155.11,21.9863]
[1723246252846,6.4454,155.15,155.11,21.9863]
[1723246253142,51.4458,155.14,155.11,21.9863]
[1723246253343,45.0,155.13,155.11,21.9863]
[1723246253734,3.37767575,155.25,155.11,21.9863]
[1723246253939,39.85,155.22,155.12,1.28885753]
[1723246254142,6.5318,155.26,155.13,39.85]
[1723246254143,39.85,155.26,155.13,39.85]
[1723246254328,6.4419,155.24,155.14,1.41410915]
[1723246254725,6.4419,155.24,155.15,0.12549]
[1723246254927,6.4419,155.24,155.15,1.53956559]
[1723246255145,6.4419,155.24,155.15,41.38956559]
[1723246255344,39.85,155.24,155.12,39.85]
[1723246255654,39.85,155.24,155.13,0.25098]
[1723246255852,13.17892156,155.27,155.16,61.4561]
[1723246256154,6.4407,155.27,155.17,1.53935839]
[1723246256338,39.85,155.3,155.19,0.12549]
[1723246256642,6.4396,155.29,155.19,1.53915794]
[1723246256846,6.4408,155.26,155.19,1.41366794]
[1723246257048,6.4404,155.27,155.19,1.41366794]
[1723246257421,6.4399,155.28,155.19,1.41366794]
[1723246258634,6.4403,155.27,155.19,1.41366794]
[1723246259144,39.85,155.28,155.19,1.28817794]
[1723246259326,39.85,155.28,155.16,61.58159]
[1723246259327,45.12549,155.27,155.17,21.28838186]
[1723246259528,45.12549,155.27,155.18,0.12549]
[1723246259741,45.12549,155.27,155.17,1.28838186]
[1723246259930,39.85,155.26,155.18,1.2883832]
[1723246260249,45.0,155.25,155.18,1.2883832]
[1723246260424,45.0,155.25,155.16,21.6061]
[1723246260425,6.4428,155.22,155.16,21.6061]
[1723246261130,45.12549,155.25,155.17,1.28863366]
[1723246261326,6.4416,155.24,155.16,21.6061]
[1723246261530,51.4413,155.25,155.17,1.28852801]
[1723246262246,0.12549,155.24,155.16,21.6061]
[1723246262653,0.12549,155.24,155.17,1.28864918]
[1723246262849,6.4423,155.23,155.16,21.6061]
[1723246263150,45.0,155.22,155.17,1.28864952]
[1723246264058,39.85,155.2,155.15,6.4841]
[1723246264262,45.25098,155.19,155.15,6.4841]
[1723246264433,6.4442,155.18,155.15,6.4841]
[1723246264630,51.4438,155.19,155.15,6.4841]
[1723246265253,6.4441,155.18,155.15,6.4841]
[1723246265435,20.0,155.17,155.15,6.4841]
[1723246265641,26.4445,155.17,155.15,6.4841]
[1723246266133,6.4449,155.16,155.15,6.4841]
[1723246266329,45.0,155.16,155.11,22.3654]
[1723246266542,45.0,155.15,155.11,22.3654]
[1723246266945,6.4458,155.14,155.11,22.3654]
[1723246267332,45.0,155.16,155.11,22.3654]
[1723246268557,51.445,155.16,155.11,22.3654]
[1723246270341,6.445,155.16,155.11,22.3654]
[1723246270762,51.4454,155.15,155.11,22.3654]
[1723246271169,45.0,155.15,155.11,22.3654]
[1723246271340,45.0,155.16,155.11,22.3654]
[1723246271651,39.85,155.22,155.13,0.12549]
[1723246271842,15.3499,155.29,155.13,0.25098]
[1723246271843,39.85,155.24,155.13,0.25098]
[1723246272045,6.4425,155.22,155.14,0.12549]
[1723246272245,6.4425,155.22,155.14,1.41416207]
[1723246273257,20.0,155.21,155.14,1.41416207]
[1723246273566,26.443,155.21,155.14,0.12549]
[1723246273869,20.0,155.21,155.11,22.3654]
[1723246274161,6.4434,155.2,155.12,0.25098]
[1723246274370,26.4429,155.21,155.13,0.12549]
[1723246274573,26.4429,155.21,155.14,0.12549]
[1723246274746,20.0,155.21,155.14,0.37647]
[1723246274946,20.0,155.21,155.15,0.12549]
[1723246275146,6.4416,155.24,155.17,15.8813]
[1723246275348,6.4416,155.24,155.18,1.28852744]
[1723246275548,20.0,155.23,155.18,1.28852744]
[1723246276565,20.0,155.23,155.19,1.28853197]
[1723246276766,20.0,155.23,155.15,0.12549]
[1723246276767,6.226,155.36,155.22,55.19979]
[1723246277077,6.4383,155.32,155.23,1.41340547]
[1723246277247,6.4383,155.32,155.24,1.28788678]
[1723246277441,6.4391,155.3,155.24,1.28788678]
[1723246277646,6.4401,155.28,155.22,15.2243]
[1723246277849,6.4404,155.27,155.22,15.2243]
[1723246278352,39.85,155.3,155.22,15.2243]
[1723246278675,39.85,155.26,155.21,6.416]
[1723246278975,6.4407,155.27,155.21,6.416]
[1723246279269,65.0,155.29,155.22,0.12549]
[1723246279769,65.0,155.29,155.22,0.37647]
[1723246281378,39.85,155.32,155.23,15.2243]
[1723246281379,6.4386,155.32,155.23,15.2243]
[1723246281546,65.0,155.31,155.24,1.28790535]
[1723246281878,71.4387,155.31,155.24,1.28790535]
[1723246282051,71.4387,155.31,155.23,15.2243]
[1723246283373,65.0,155.31,155.23,15.2243]
[1723246283765,6.4399,155.29,155.23,15.2243]
[1723246283956,65.0,155.31,155.23,15.2243]
[1723246283957,6.44,155.28,155.23,15.2243]
[1723246284752,6.4392,155.3,155.23,15.2243]
[1723246284966,45.0,155.29,155.24,1.28799424]
[1723246285180,65.0,155.31,155.24,1.28799424]
[1723246285552,71.4388,155.31,155.24,1.28799424]
[1723246285755,6.4391,155.3,155.23,15.2243]
[1723246285956,51.4395,155.29,155.23,15.2243]
[1723246286168,6.4395,155.29,155.23,15.2243]
[1723246287166,6.4391,155.3,155.23,15.2243]
[1723246287359,45.0,155.29,155.23,15.2243]
[1723246287668,20.0,155.28,155.23,15.2243]
[1723246287871,45.0,155.27,155.23,15.2243]
[1723246288181,6.4416,155.24,155.21,6.416]
[1723246288357,45.0,155.27,155.21,6.416]
[1723246288553,20.0,155.26,155.21,6.416]
[1723246290068,45.0,155.27,155.21,6.416]
[1723246290267,6.4418,155.24,155.21,6.416]
[1723246290480,59.85,155.26,155.19,15.2243]
[1723246290683,6.4421,155.23,155.19,15.2243]
[1723246290885,6.4424,155.22,155.19,15.2243]
[1723246291976,46.2917,155.24,155.19,15.2243]
[1723246292176,20.0,155.26,155.19,15.2243]
[1723246292177,45.0,155.25,155.19,15.2243]
[1723246292377,45.0,155.25,155.2,1.28839179]
[1723246292875,45.0,155.25,155.19,15.2243]
[1723246293289,6.4428,155.22,155.19,15.2243]
[1723246293588,6.4428,155.21,155.17,6.416]
[1723246293797,59.85,155.24,155.15,15.2243]
[1723246293798,45.0,155.2,155.15,15.2243]
[1723246294086,6.4438,155.19,155.15,15.2243]
[1723246294665,51.4433,155.2,155.15,15.2243]
[1723246294862,45.0,155.2,155.15,15.2243]
[1723246295095,59.85,155.24,155.15,15.2243]
[1723246295384,39.85,155.3,155.18,39.85]
[1723246295565,39.85,155.3,155.2,15.2243]
[1723246295765,46.2887,155.32,155.21,1.53914051]
[1723246296095,10.09213673,155.34,155.24,6.416]
[1723246296096,49.94213673,155.34,155.24,6.416]
[1723246296383,6.4391,155.31,155.24,6.416]
[1723246296589,6.4386,155.32,155.24,6.416]
[1723246296795,6.4391,155.31,155.24,6.416]
[1723246297264,20.0,155.3,155.24,6.416]
[1723246297466,6.4391,155.31,155.24,6.416]
[1723246297677,39.85,155.32,155.24,6.416]
[1723246297884,6.4407,155.27,155.24,6.416]
[1723246298363,6.72311259,155.33,155.2,21.367]
[1723246298566,39.85,155.3,155.2,21.367]
[1723246298872,71.4395,155.29,155.2,21.367]
[1723246299387,6.44,155.28,155.2,21.367]
[1723246299578,65.0,155.27,155.2,21.367]
[1723246299971,6.4412,155.25,155.2,21.367]
[1723246300271,45.0,155.24,155.2,21.367]
[1723246300682,51.4417,155.24,155.2,21.367]
[1723246301190,20.0,155.23,155.16,21.7174]
[1723246301400,84.97549,155.22,155.16,6.1427]
[1723246301565,20.0,155.21,155.16,6.1427]
[1723246302391,45.0,155.2,155.16,6.1427]
[1723246302572,45.0,155.2,155.12,15.5747]
[1723246302573,6.4445,155.17,155.12,15.5747]
[1723246302896,6.4444,155.18,155.12,15.5747]
[1723246303186,51.4445,155.17,155.12,15.5747]
[1723246303388,6.4451,155.16,155.12,15.5747]
[1723246303693,65.0,155.15,155.11,6.4878]
[1723246303994,6.4462,155.13,155.07,23.7868987]
[1723246304295,45.0,155.12,155.07,23.7868987]
[1723246304672,20.0,155.15,155.07,23.7868987]
[1723246304871,20.0,155.15,155.08,1.28952144]
[1723246305180,20.0,155.17,155.08,41.13952144]
[1723246305382,20.0,155.19,155.1,39.85]
[1723246305601,45.0,155.18,155.1,39.85]
[1723246305890,20.0,155.17,155.1,39.85]
[1723246306075,20.0,155.17,155.1,41.13903811]
[1723246306609,20.0,155.18,155.11,0.12549]
[1723246306789,20.0,155.18,155.11,0.37647]
[1723246306988,20.0,155.18,155.11,0.25098]
[1723246307682,6.4431,155.21,155.12,6.4878]
[1723246307989,46.2925,155.22,155.13,0.12549]
[1723246308892,6.4432,155.21,155.12,6.4878]
[1723246309091,45.0,155.2,155.12,6.4878]
[1723246309287,6.4433,155.2,155.12,6.4878]
[1723246309596,45.0,155.21,155.12,6.4878]
[1723246309797,20.0,155.2,155.13,0.12549]
[1723246309973,20.0,155.2,155.12,6.4878]
[1723246310178,45.0,155.19,155.12,6.4878]
[1723246310577,51.4437,155.19,155.12,6.4878]
[1723246311288,45.0,155.19,155.12,6.4878]
[1723246312285,51.4437,155.19,155.12,6.4878]
[1723246312615,20.0,155.2,155.12,6.4878]
[1723246312914,26.4432,155.21,155.12,6.4878]
[1723246313075,51.4433,155.2,155.12,6.4878]
[1723246313499,45.0,155.2,155.12,6.4878]
[1723246313684,45.0,155.2,155.13,1.28883007]
[1723246314003,45.0,155.2,155.12,6.4878]
[1723246315185,51.4433,155.2,155.12,6.4878]
[1723246315980,20.0,155.21,155.12,6.4878]
[1723246315981,20.0,155.21,155.15,0.12549]
[1723246316182,3.20281913,155.27,155.15,1.66505986]
[1723246316183,6.4404,155.27,155.15,1.66505986]
[1723246316402,6.4404,155.27,155.17,0.12549]
[1723246316709,39.85,155.28,155.16,39.85]
[1723246317019,6.4424,155.23,155.14,56.307]
[1723246317196,39.85,155.24,155.14,16.457]
[1723246317504,6.444,155.19,155.14,16.457]
[1723246317703,45.0,155.18,155.14,16.457]
[1723246319703,45.0,155.19,155.12,6.4878]
[1723246319905,6.4445,155.17,155.12,6.4878]
[1723246320903,104.85,155.16,155.12,6.4878]
[1723246321481,104.85,155.16,155.1,16.1916]
[1723246321785,38.4054,155.15,155.1,16.1916]
[1723246322096,6.4462,155.13,155.08,6.4851]
[1723246322300,45.0,155.12,155.08,6.4851]
[1723246323497,51.4466,155.12,155.08,6.4851]
[1723246323896,45.0,155.12,155.08,6.4851]
[1723246324490,6.447,155.11,155.07,0.8420987]
[1723246324696,31.96,155.09,155.07,0.8420987]
[1723246325407,45.0,155.08,155.07,0.8420987]
[1723246325987,51.4482,155.08,155.07,0.8420987]
[1723246326183,65.25098,155.08,154.98,22.6767]
[1723246326406,31.96,155.03,154.98,22.6767]
[1723246326598,6.4509,155.02,154.98,22.6767]
[1723246326805,45.0,155.01,154.98,22.6767]
[1723246327005,45.0,155.01,154.98,6.4851]
[1723246327304,76.96,155.01,154.94,22.6767]
[1723246327611,45.0,155.01,154.94,22.6767]
[1723246327914,45.0,155.02,154.94,62.6767]
[1723246328109,20.37647,155.07,154.96,40.0]
[1723246328307,45.0,155.06,154.96,41.29017003]